fUSD/lending_fUSD_20260322
["ID","MTS","AMOUNT","RATE_DAILY","PERIOD"]
[408759251,1774200654945,-209.2266,0.00023,2]
[408759252,1774200654959,-150.19588143,0.00023014,2]
[408759253,1774200654969,-150.0,0.00023074,2]
[408759254,1774200654979,-3433.0321845,0.00023074,2]
[408759255,1774200654989,-150.0,0.00023074,2]
[408759256,1774200654998,-21191.2452988,0.00023074,2]
[408759257,1774200655008,-150.0,0.00023074,2]
[408759258,1774200655017,-6940.61553039,0.00023074,2]
[408759259,1774200655027,-500.0,0.00023096,2]
[408759260,1774200655036,-718.62,0.00023121,2]
[408759261,1774200655046,-2117.71,0.00023172,30]
[408759262,1774200655056,-343.58347608,0.0002319,2]
[408759263,1774200655065,-500.0,0.00023196,2]
[408759264,1774200655075,-134938.59,0.000232,7]
[408759265,1774200655084,-965.28428566,0.000232,2]
[408759266,1774200655095,-150.0,0.00023205,2]
[408759267,1774200655104,-308.47240642,0.0002321,2]
[408759268,1774200655114,-272.82688778,0.00023264,2]
[408759269,1774200655124,-550.0,0.00023264,2]
[408759270,1774200655133,-500.0,0.00023287,2]
[408759271,1774200655143,-500.0,0.00023288,2]
[408759272,1774200655152,-548.73,0.000233,7]
[408759273,1774200655161,-150.0,0.000233,2]
[408759274,1774200655170,-160.0,0.000233,7]
[408759275,1774200655179,-160.0,0.000233,7]
[408759276,1774200655189,-501.0,0.00023429,10]
[408759277,1774200655198,-260.4103811,0.00023513,2]
[408759278,1774200655208,-1406.47,0.000236,7]
[408759279,1774200655218,-1577.69,0.000238,7]
[408759280,1774200655227,-650.0,0.00023812,2]
[408759281,1774200655237,-154.05792023,0.00023816,2]
[408759282,1774200655246,-250.0,0.00023848,2]
[408759283,1774200655256,-1010.03678902,0.00023988,10]
[408759284,1774200655265,-979.16666667,0.00024,7]
[408759285,1774200655275,-1515.8,0.00024,7]
[408759286,1774200655284,-2000.0,0.00024,2]
[408759287,1774200655295,-151.0,0.00024,2]
[408759288,1774200655311,-294.560932,0.00024,2]
[408759289,1774200655320,-151.0,0.00024,2]
[408759290,1774200655330,-214.985057,0.00024,2]
[408759291,1774200655339,-934.0,0.00024,2]
[408759292,1774200655349,-270.0455652,0.00024061,2]
[408759293,1774200655366,-501.0,0.00024154,10]
[408759294,1774200655376,-425.18257936,0.0002421,2]
[408759295,1774200655386,-2541.25,0.00024308,30]
[408759296,1774200655395,-1214.78,0.00024322,2]
[408759297,1774200655405,-1488.63,0.00024322,2]
[408759298,1774200655414,-3560.32,0.00024322,2]
[408759299,1774200655423,-3168.89,0.00024322,2]
[408759300,1774200655432,-6489.8,0.00024322,2]
[408759301,1774200655441,-750.0,0.0002436,2]
[408759302,1774200655449,-350.0,0.00024396,2]
[408759303,1774200655459,-500.0,0.00024397,2]
[408759304,1774200655468,-150.0,0.000244,30]
[408759305,1774200655477,-217.1078,0.000244,2]
[408759306,1774200655487,-1298.86,0.00024513,2]
[408759307,1774200655497,-166.3806247,0.0002455,15]
[408759308,1774200655506,-280.03725112,0.00024609,2]
[408759309,1774200655515,-318.48764684,0.0002465,120]
[408759310,1774200655525,-500.0,0.00024656,2]
[408759311,1774200655534,-1000.0,0.00024658,2]
[408759312,1774200655543,-151.0,0.00024658,2]
[408759313,1774200655553,-151.0,0.00024658,2]
[408759314,1774200655563,-151.0,0.00024658,2]
[408759315,1774200655572,-151.0,0.00024658,2]
[408759316,1774200655582,-151.0,0.00024658,2]
[408759317,1774200655591,-150.0,0.00024658,2]
[408759318,1774200655601,-170.706749,0.00024658,2]
[408759319,1774200655610,-170.706749,0.00024658,2]
[408759320,1774200655620,-170.706749,0.00024658,2]
[408759321,1774200655631,-170.706749,0.00024658,2]
[408759322,1774200655641,-170.706749,0.00024658,2]
[408759323,1774200655655,-170.706749,0.00024658,2]
[408759324,1774200655665,-170.706749,0.00024658,2]
[408759325,1774200655674,-170.706749,0.00024658,2]
[408759326,1774200655685,-718.62,0.00024699,2]
[408759327,1774200655696,-134938.59,0.000247,7]
[408759328,1774200655706,-151.0,0.000247,2]
[408759329,1774200655715,-151.0,0.000247,2]
[408759330,1774200655727,-271.812456,0.000247,2]
[408759331,1774200655737,-271.812456,0.000247,2]
[408759332,1774200655745,-271.812456,0.000247,2]
[408759333,1774200655755,-271.812456,0.000247,2]
[408759334,1774200655764,-151.0,0.000247,2]
[408759335,1774200655773,-151.0,0.000247,2]
[408759336,1774200655782,-151.0,0.000247,2]
[408759337,1774200655792,-151.0,0.000247,2]
[408759338,1774200655801,-151.0,0.000247,2]
[408759339,1774200655811,-151.0,0.000247,2]
[408759340,1774200655820,-151.0,0.000247,2]
[408759341,1774200655831,-151.0,0.000247,2]
[408759342,1774200655840,-159.924459,0.000247,2]
[408759343,1774200655849,-151.0,0.000247,2]
[408759344,1774200655859,-151.0,0.000247,2]
[408759345,1774200655868,-151.0,0.000247,2]
[408759346,1774200655878,-151.0,0.000247,2]
[408759347,1774200655887,-387.999451,0.000247,2]
[408759348,1774200655897,-387.999451,0.000247,2]
[408759349,1774200655911,-387.999451,0.000247,2]
[408759350,1774200655920,-387.999451,0.000247,2]
[408759351,1774200655929,-152.854005,0.000247,3]
[408759352,1774200655938,-1042.059857,0.000247,2]
[408759353,1774200655947,-1042.059857,0.000247,2]
[408759354,1774200655957,-1042.059857,0.000247,2]
[408759355,1774200655966,-1042.059857,0.000247,2]
[408759356,1774200655976,-151.0,0.000247,2]
[408759357,1774200655986,-1107.282865,0.000247,2]
[408759358,1774200655995,-1107.282865,0.000247,2]
[408759359,1774200656006,-152.991552,0.000247,2]
[408759360,1774200656015,-1107.282865,0.000247,2]
[408759361,1774200656024,-152.991552,0.000247,2]
[408759362,1774200656034,-1107.282865,0.000247,2]
[408759363,1774200656043,-152.991552,0.000247,2]
[408759364,1774200656052,-152.991552,0.000247,2]
[408759365,1774200656062,-151.0,0.000247,2]
[408759366,1774200656071,-151.0,0.000247,2]
[408759367,1774200656080,-151.0,0.000247,2]
[408759368,1774200656089,-150.0,0.00024739,2]
[408759369,1774200656098,-272.0,0.00024739,2]
[408759370,1774200656107,-150.0,0.00024739,2]
[408759371,1774200656116,-200.0,0.00024739,2]
[408759372,1774200656126,-1779.72,0.000248,2]
[408759373,1774200656135,-501.0,0.00024879,11]
[408759374,1774200656144,-154.190273,0.00024897,7]
[408759375,1774200656154,-189.459474,0.00024897,7]
[408759376,1774200656163,-718.62,0.00024899,2]
[408759377,1774200656172,-718.62,0.00024899,2]
[408759378,1774200656181,-746.586769,0.000249,2]
[408759379,1774200656190,-746.586769,0.000249,2]
[408759380,1774200656199,-746.586769,0.000249,2]
[408759381,1774200656209,-746.586769,0.000249,2]
[408759382,1774200656218,-475.976313,0.000249,2]
[408759383,1774200656227,-475.976313,0.000249,2]
[408759384,1774200656236,-475.976313,0.000249,2]
[408759385,1774200656246,-151.0,0.000249,2]
[408759386,1774200656256,-475.976313,0.000249,2]
[408759387,1774200656266,-151.0,0.000249,2]
[408759388,1774200656276,-151.0,0.000249,2]
[408759389,1774200656285,-196.758653,0.000249,2]
[408759390,1774200656295,-151.0,0.000249,2]
[408759391,1774200656304,-151.0,0.000249,2]
[408759392,1774200656314,-151.0,0.000249,2]
[408759393,1774200656324,-297.502657,0.000249,2]
[408759394,1774200656333,-566.548979,0.000249,2]
[408759395,1774200656342,-566.548979,0.000249,2]
[408759396,1774200656352,-566.548979,0.000249,2]
[408759397,1774200656361,-566.548979,0.000249,2]
[408759398,1774200656370,-68692.8684176,0.000249,2]
[408759399,1774200656380,-556.466781,0.000249,2]
[408759400,1774200656388,-556.466781,0.000249,2]
[408759401,1774200656398,-556.466781,0.000249,2]
[408759402,1774200656407,-556.466781,0.000249,2]
[408759403,1774200656416,-850.0,0.00024908,2]
[408759404,1774200656425,-216.0,0.0002493,30]
[408759405,1774200656435,-450.0,0.00024944,2]
[408759406,1774200656444,-150.0,0.00025,2]
[408759407,1774200656453,-163.611,0.00025,2]
[408759408,1774200656463,-550.0,0.00025,2]
[408759409,1774200656472,-934.0,0.00025,2]
[408759410,1774200656481,-2595.35189897,0.00025,30]
[408759411,1774200656490,-208.7069884,0.00025,2]
[408759412,1774200656499,-979.16666667,0.00025,30]
[408759413,1774200656509,-456.72537802,0.00025,60]
[408759414,1774200656518,-553.60235841,0.00025,7]
[408759415,1774200656528,-540.0,0.00025,2]
[408759416,1774200656537,-614.34436897,0.00025,2]
[408759417,1774200656547,-168.26487336,0.00025,2]
[408759418,1774200656556,-221.85882281,0.00025,120]
[408759419,1774200656565,-172.24548797,0.00025,5]
[408759420,1774200656574,-8426.0,0.00025113,2]
[408759421,1774200656584,-290.39862941,0.00025157,2]
[408759422,1774200656594,-287.71,0.00025178,2]
[408759423,1774200656603,-154.05792023,0.00025217,2]
[408759424,1774200656613,-500.0,0.00025341,120]
[408759425,1774200656623,-548.73,0.000254,7]
[408759426,1774200656633,-1406.47,0.000254,7]
[408759427,1774200656643,-2964.79,0.00025445,30]
[408759428,1774200656654,-950.0,0.00025456,2]
[408759429,1774200656665,-550.0,0.00025492,2]
[408759430,1774200656675,-150.0,0.00025526,2]
[408759431,1774200656685,-501.0,0.00025604,12]
[408759432,1774200656695,-644.79446246,0.00025702,2]
[408759433,1774200656705,-775.47832561,0.00025702,2]
[408759434,1774200656714,-170.706749,0.00025702,2]
[408759435,1774200656724,-170.706749,0.00025702,2]
[408759436,1774200656737,-170.706749,0.00025702,2]
[408759437,1774200656746,-170.706749,0.00025702,2]
[408759438,1774200656951,-301.1433787,0.00025705,2]
[408759439,1774200656968,-4735.88974739,0.00025784,120]
[408759440,1774200656977,-1242.4432744,0.00025784,120]
[408759441,1774200656986,-225.2858,0.000258,2]
[408759442,1774200656996,-150.0,0.00025811,2]
[408759443,1774200657006,-1261.0,0.00025811,2]
[408759444,1774200657016,-3760.0,0.00025811,2]
[408759445,1774200657025,-415.0,0.00025811,2]
[408759446,1774200657035,-150.0,0.00025835,2]
[408759447,1774200657044,-150.0,0.00025835,2]
[408759448,1774200657055,-150.0,0.00025835,2]
[408759449,1774200657064,-150.064,0.00025835,2]
[408759450,1774200657074,-150.0,0.00025835,2]
[408759451,1774200657084,-150.0,0.00025835,2]
[408759452,1774200657094,-150.0,0.00025835,2]
[408759453,1774200657103,-150.0,0.00025835,2]
[408759454,1774200657113,-150.0,0.00025835,2]
[408759455,1774200657122,-150.0,0.0002589,2]
[408759456,1774200657132,-659.0,0.00025893,10]
[408759457,1774200657141,-470.0,0.00025893,10]
[408759458,1774200657151,-500.0,0.00025899,2]
[408759459,1774200657161,-718.62,0.00025899,2]
[408759460,1774200657171,-718.62,0.00025899,2]
[408759461,1774200657180,-718.62,0.00025899,2]
[408759462,1774200657190,-718.62,0.00025899,2]
[408759463,1774200657199,-718.73,0.00025899,2]
[408759464,1774200657209,-134938.59,0.000259,7]
[408759465,1774200657219,-151.0,0.000259,2]
[408759466,1774200657229,-151.0,0.000259,2]
[408759467,1774200657238,-604.4050922,0.0002599,2]
[408759468,1774200657247,-160.0,0.00026,30]
[408759469,1774200657257,-934.0,0.00026,2]
[408759470,1774200657266,-217.74931528,0.00026,2]
[408759471,1774200657276,-27005.76314661,0.00026,10]
[408759472,1774200657287,-979.16666667,0.00026,10]
[408759473,1774200657296,-222.60723059,0.00026,30]
[408759474,1774200657307,-500.0,0.00026025,2]
[408759475,1774200657316,-650.0,0.0002604,2]
[408759476,1774200657328,-1577.69,0.000261,7]
[408759477,1774200657337,-879.37,0.00026193,30]
[408759478,1774200657347,-791.17789278,0.000263,2]
[408759479,1774200657357,-501.0,0.0002633,12]
[408759480,1774200657366,-1515.8,0.000264,7]
[408759481,1774200657375,-4925.74237913,0.00026424,2]
[408759482,1774200657385,-151.0,0.0002643,2]
[408759483,1774200657394,-151.0,0.0002643,2]
[408759484,1774200657404,-867.7,0.0002643,2]
[408759485,1774200657414,-1063.31,0.0002643,2]
[408759486,1774200657423,-2543.08,0.0002643,2]
[408759487,1774200657433,-2263.48,0.0002643,2]
[408759488,1774200657443,-4635.57,0.0002643,2]
[408759489,1774200657452,-500.0,0.00026438,2]
[408759490,1774200657461,-346.1073186,0.00026524,2]
[408759491,1774200657471,-3388.33,0.00026582,30]
[408759492,1774200657480,-750.0,0.00026588,2]
[408759493,1774200657489,-154.05792023,0.00026618,2]
[408759494,1774200657499,-151.0,0.00026633,2]
[408759495,1774200657508,-151.0,0.00026633,2]
[408759496,1774200657517,-151.0,0.00026633,2]
[408759497,1774200657527,-151.0,0.00026633,2]
[408759498,1774200657536,-151.0,0.00026633,2]
[408759499,1774200657549,-151.0,0.00026633,2]
[408759500,1774200657558,-500.0,0.00026647,120]
[408759501,1774200657568,-1298.86,0.00026676,2]
[408759502,1774200657578,-800.0,0.00026986,120]
[408759503,1774200657588,-800.0,0.00026986,120]
[408759504,1774200657597,-800.0,0.00026986,120]
[408759505,1774200657607,-1779.72,0.00027,2]
[408759506,1774200657617,-600.0,0.00027,2]
[408759507,1774200657626,-160.0,0.00027,3]
[408759508,1774200657636,-946.91786073,0.00027,2]
[408759509,1774200657645,-250.0,0.00027,2]
[408759510,1774200657658,-747.28321255,0.00027,120]
[408759511,1774200657668,-530.0,0.00027,2]
[408759512,1774200657677,-278.62222136,0.00027,120]
[408759513,1774200657687,-501.0,0.00027055,13]
[408759514,1774200657699,-1406.47,0.000271,7]
[408759515,1774200657709,-151.0,0.0002713,2]
[408759516,1774200657719,-151.0,0.0002713,2]
[408759517,1774200657729,-387.999451,0.0002713,2]
[408759518,1774200657739,-387.999451,0.0002713,2]
[408759519,1774200657749,-387.999451,0.0002713,2]
[408759520,1774200657758,-387.999451,0.0002713,2]
[408759521,1774200657768,-212.91531025,0.00027136,2]
[408759522,1774200657777,-150.0,0.00027185,2]
[408759523,1774200657787,-500.0,0.00027199,2]
[408759524,1774200657796,-548.73,0.000272,7]
[408759525,1774200657806,-134938.59,0.000272,7]
[408759526,1774200657815,-151.0,0.000272,2]
[408759527,1774200657825,-151.0,0.000272,2]
[408759528,1774200657834,-271.812456,0.000272,2]
[408759529,1774200657843,-271.812456,0.000272,2]
[408759530,1774200657852,-271.812456,0.000272,2]
[408759531,1774200657862,-271.812456,0.000272,2]
[408759532,1774200657871,-151.0,0.000272,2]
[408759533,1774200657881,-151.0,0.000272,2]
[408759534,1774200657890,-222.078949,0.000272,2]
[408759535,1774200657899,-151.0,0.000272,2]
[408759536,1774200657910,-233.7719,0.000272,2]
[408759537,1774200657919,-500.0,0.00027394,2]
[408759538,1774200657928,-2700.0,0.00027397,21]
[408759539,1774200657938,-600.0,0.00027397,120]
[408759540,1774200657948,-276.74942668,0.00027397,7]
[408759541,1774200657957,-300.0,0.00027397,2]
[408759542,1774200657967,-522.97,0.00027397,2]
[408759543,1774200657977,-846.744065,0.00027397,2]
[408759544,1774200657986,-846.744065,0.00027397,2]
[408759545,1774200657995,-846.744065,0.00027397,2]
[408759546,1774200658006,-846.744065,0.00027397,2]
[408759547,1774200658015,-846.744065,0.00027397,2]
[408759548,1774200658024,-846.744065,0.00027397,2]
[408759549,1774200658034,-846.744065,0.00027397,2]
[408759550,1774200658043,-846.744065,0.00027397,2]
[408759551,1774200658058,-394.326234,0.00027397,2]
[408759552,1774200658067,-394.326234,0.00027397,2]
[408759553,1774200658076,-394.326234,0.00027397,2]
[408759554,1774200658085,-394.326234,0.00027397,2]
[408759555,1774200658094,-394.326234,0.00027397,2]
[408759556,1774200658103,-394.326234,0.00027397,2]
[408759557,1774200658112,-394.326234,0.00027397,2]
[408759558,1774200658122,-394.326234,0.00027397,2]
[408759559,1774200658131,-846.123474,0.00027397,2]
[408759560,1774200658140,-846.123474,0.00027397,2]
[408759561,1774200658149,-846.123474,0.00027397,2]
[408759562,1774200658158,-846.123474,0.00027397,2]
[408759563,1774200658167,-846.123474,0.00027397,2]
[408759564,1774200658176,-846.123474,0.00027397,2]
[408759565,1774200658185,-846.123474,0.00027397,2]
[408759566,1774200658196,-846.123474,0.00027397,2]
[408759567,1774200658205,-846.123474,0.00027397,2]
[408759568,1774200658214,-846.123474,0.00027397,2]
[408759569,1774200658223,-846.123474,0.00027397,2]
[408759570,1774200658233,-846.123474,0.00027397,2]
[408759571,1774200658242,-151.0,0.00027397,2]
[408759572,1774200658251,-151.0,0.00027397,2]
[408759573,1774200658260,-161.540717,0.00027397,2]
[408759574,1774200658270,-151.0,0.00027397,2]
[408759575,1774200658280,-151.0,0.00027397,2]
[408759576,1774200658289,-779.952875,0.00027397,2]
[408759577,1774200658299,-779.952875,0.00027397,2]
[408759578,1774200658311,-779.952875,0.00027397,2]
[408759579,1774200658320,-779.952875,0.00027397,2]
[408759580,1774200658330,-779.952875,0.00027397,2]
[408759581,1774200658339,-779.952875,0.00027397,2]
[408759582,1774200658349,-779.952875,0.00027397,2]
[408759583,1774200658359,-779.952875,0.00027397,2]
[408759584,1774200658368,-779.952875,0.00027397,2]
[408759585,1774200658377,-779.952875,0.00027397,2]
[408759586,1774200658387,-779.952875,0.00027397,2]
[408759587,1774200658397,-779.952875,0.00027397,2]
[408759588,1774200658407,-861.535885,0.00027397,2]
[408759589,1774200658416,-861.535885,0.00027397,2]
[408759590,1774200658426,-861.535885,0.00027397,2]
[408759591,1774200658436,-861.535885,0.00027397,2]
[408759592,1774200658445,-861.535885,0.00027397,2]
[408759593,1774200658455,-861.535885,0.00027397,2]
[408759594,1774200658464,-861.535885,0.00027397,2]
[408759595,1774200658474,-861.535885,0.00027397,2]
[408759596,1774200658484,-28143.7,0.00027397,10]
[408759597,1774200658493,-500.0,0.00027397,5]
[408759598,1774200658503,-167.0,0.00027397,2]
[408759599,1774200658513,-167.0,0.00027397,2]
[408759600,1774200658522,-167.0,0.00027397,2]
[408759601,1774200658532,-167.0,0.00027397,2]
[408759602,1774200658541,-167.0,0.00027397,2]
[408759603,1774200658551,-167.0,0.00027397,2]
[408759604,1774200658560,-181.90311346,0.00027397,2]
[408759605,1774200658570,-150.0,0.00027397,5]
[408759606,1774200658580,-160.93366533,0.00027397,5]
[408759607,1774200658589,-209.369272,0.00027463,7]
[408759608,1774200658599,-209.369272,0.00027463,7]
[408759609,1774200658609,-209.369272,0.00027463,7]
[408759610,1774200658618,-209.369272,0.00027463,7]
[408759611,1774200658628,-151.0,0.00027463,7]
[408759612,1774200658638,-202.59351306,0.000275,2]
[408759613,1774200658648,-553.35373016,0.000275,2]
[408759614,1774200658664,-470.47402535,0.00027671,30]
[408759615,1774200658676,-2000.0,0.000277,2]
[408759616,1774200658685,-3811.88,0.00027718,30]
[408759617,1774200658695,-150.0,0.00027739,2]
[408759618,1774200658706,-150.0,0.00027739,2]
[408759619,1774200658715,-150.0,0.00027739,2]
[408759620,1774200658725,-501.0,0.0002778,14]
[408759621,1774200658735,-3267.70523285,0.00027904,2]
[408759622,1774200658744,-1010.03678902,0.00027944,15]
[408759623,1774200658754,-392.06168779,0.00027945,30]
[408759624,1774200658764,-250.0,0.00027945,5]
[408759625,1774200658773,-500.0,0.00027953,120]
[408759626,1774200658782,-562.24,0.00027972,2]
[408759627,1774200658791,-160.0,0.00028,10]
[408759628,1774200658801,-4670.378391,0.00028,60]
[408759629,1774200658810,-160.0,0.00028,2]
[408759630,1774200658819,-702.35902646,0.00028,14]
[408759631,1774200658829,-643.0,0.00028,2]
[408759632,1774200658838,-979.16666667,0.00028,10]
[408759633,1774200658847,-154.05792023,0.00028019,2]
[408759634,1774200658856,-647.46022535,0.00028027,7]
[408759635,1774200658866,-150.0,0.00028079,2]
[408759636,1774200658875,-287.71,0.00028178,2]
[408759637,1774200658885,-2700.0,0.00028219,21]
[408759638,1774200658894,-1336.26649901,0.00028238,4]
[408759639,1774200658903,-1577.69,0.000283,7]
[408759640,1774200658913,-150.0,0.000283,26]
[408759641,1774200658921,-181.52,0.00028334,120]
[408759642,1774200658930,-171.0,0.00028345,120]
[408759643,1774200658940,-171.0,0.00028345,120]
[408759644,1774200658949,-172.0,0.00028345,120]
[408759645,1774200658959,-313.64935023,0.00028356,30]
[408759646,1774200658967,-668.65185757,0.00028441,2]
[408759647,1774200658977,-804.17102365,0.00028441,2]
[408759648,1774200658986,-166.89,0.00028493,2]
[408759649,1774200658995,-350.0,0.00028493,5]
[408759650,1774200659004,-1515.8,0.000285,7]
[408759651,1774200659013,-134938.59,0.000285,7]
[408759652,1774200659022,-242.5776,0.000285,2]
[408759653,1774200659032,-501.0,0.00028505,14]
[408759654,1774200659041,-150.0,0.00028544,2]
[408759655,1774200659050,-214.33445005,0.0002858,49]
[408759656,1774200659463,-497.88707534,0.00028767,2]
[408759657,1774200659473,-500.0,0.00028767,120]
[408759658,1774200659482,-500.0,0.00028767,120]
[408759659,1774200659492,-500.0,0.00028767,120]
[408759660,1774200659501,-500.0,0.00028767,120]
[408759661,1774200659510,-500.0,0.00028767,120]
[408759662,1774200659519,-500.0,0.00028767,120]
[408759663,1774200659529,-191.26170008,0.00028767,120]
[408759664,1774200659539,-235.23701268,0.00028767,30]
[408759665,1774200659549,-501.79723944,0.00028767,5]
[408759666,1774200659558,-160.0,0.000288,10]
[408759667,1774200659567,-1261.0,0.00028811,2]
[408759668,1774200659577,-3760.0,0.00028811,2]
[408759669,1774200659586,-415.0,0.00028811,2]
[408759670,1774200659596,-1042.059857,0.00028811,7]
[408759671,1774200659606,-1042.059857,0.00028811,7]
[408759672,1774200659616,-1042.059857,0.00028811,7]
[408759673,1774200659625,-1042.059857,0.00028811,7]
[408759674,1774200659635,-151.0,0.00028811,7]
[408759675,1774200659645,-1107.282865,0.00028811,7]
[408759676,1774200659660,-1107.282865,0.00028811,7]
[408759677,1774200659670,-152.991552,0.00028811,7]
[408759678,1774200659680,-1107.282865,0.00028811,7]
[408759679,1774200659689,-152.991552,0.00028811,7]
[408759680,1774200659710,-1107.282865,0.00028811,7]
[408759681,1774200659723,-152.991552,0.00028811,7]
[408759682,1774200659734,-152.991552,0.00028811,7]
[408759683,1774200659744,-151.0,0.00028811,7]
[408759684,1774200659755,-151.0,0.00028811,7]
[408759685,1774200659765,-151.0,0.00028811,7]
[408759686,1774200659775,-350.0,0.00028828,4]
[408759687,1774200659785,-150.0,0.00028835,2]
[408759688,1774200659795,-150.0,0.00028835,2]
[408759689,1774200659806,-150.0,0.00028835,2]
[408759690,1774200659816,-150.0,0.00028835,2]
[408759691,1774200659827,-150.0,0.00028835,2]
[408759692,1774200659837,-150.0,0.00028835,2]
[408759693,1774200659846,-150.0,0.00028835,2]
[408759694,1774200659856,-150.0,0.00028835,2]
[408759695,1774200659866,-1298.86,0.00028839,2]
[408759696,1774200659877,-4235.42,0.00028855,30]
[408759697,1774200659887,-1779.72,0.000289,2]
[408759698,1774200659897,-548.73,0.000289,7]
[408759699,1774200659907,-650.0,0.00029,2]
[408759700,1774200659917,-3627.66805208,0.00029,120]
[408759701,1774200659928,-505.84884145,0.00029,2]
[408759702,1774200659939,-341.27,0.00029013,120]
[408759703,1774200659949,-2700.0,0.00029041,21]
[408759704,1774200659960,-396.0,0.00029041,7]
[408759705,1774200659971,-396.0,0.00029041,7]
[408759706,1774200659981,-396.0,0.00029041,7]
[408759707,1774200659991,-396.0,0.00029041,7]
[408759708,1774200660001,-450.0,0.00029041,5]
[408759709,1774200660011,-500.0,0.0002913,5]
[408759710,1774200660022,-500.0,0.0002913,20]
[408759711,1774200660032,-500.0,0.0002913,5]
[408759712,1774200660043,-500.0,0.0002913,5]
[408759713,1774200660054,-500.0,0.0002913,20]
[408759714,1774200660063,-500.0,0.0002913,5]
[408759715,1774200660074,-500.0,0.00029137,7]
[408759716,1774200660084,-500.0,0.00029137,7]
[408759717,1774200660094,-500.0,0.00029137,7]
[408759718,1774200660103,-500.0,0.00029137,7]
[408759719,1774200660112,-500.0,0.00029137,7]
[408759720,1774200660122,-500.0,0.00029137,7]
[408759721,1774200660132,-500.0,0.00029137,7]
[408759722,1774200660142,-500.0,0.00029137,7]
[408759723,1774200660152,-500.0,0.00029137,7]
[408759724,1774200660162,-500.0,0.00029137,7]
[408759725,1774200660172,-500.0,0.00029137,7]
[408759726,1774200660182,-500.0,0.00029137,7]
[408759727,1774200660192,-500.0,0.00029137,7]
[408759728,1774200660203,-500.0,0.00029137,7]
[408759729,1774200660213,-500.0,0.00029137,7]
[408759730,1774200660223,-500.0,0.00029137,7]
[408759731,1774200660233,-500.0,0.00029137,7]
[408759732,1774200660243,-500.0,0.00029137,7]
[408759733,1774200660254,-500.0,0.00029137,7]
[408759734,1774200660263,-500.0,0.00029137,7]
[408759735,1774200660273,-500.0,0.00029137,7]
[408759736,1774200660283,-500.0,0.00029137,7]
[408759737,1774200660293,-500.0,0.00029137,7]
[408759738,1774200660303,-500.0,0.00029137,7]
[408759739,1774200660313,-500.0,0.00029137,7]
[408759740,1774200660323,-500.0,0.00029137,7]
[408759741,1774200660333,-500.0,0.00029137,7]
[408759742,1774200660343,-500.0,0.00029137,7]
[408759743,1774200660352,-500.0,0.00029137,7]
[408759744,1774200660362,-500.0,0.00029137,7]
[408759745,1774200660372,-500.0,0.00029137,7]
[408759746,1774200660382,-500.0,0.00029137,7]
[408759747,1774200660391,-500.0,0.00029137,7]
[408759748,1774200660401,-500.0,0.00029137,7]
[408759749,1774200660411,-500.0,0.00029137,7]
[408759750,1774200660421,-500.0,0.00029137,7]